bitfinex-derivatives/quotes_BTCF0:USTF0_20241020
["timestamp","ask_amount","ask_price","bid_price","bid_amount"]
[1729457833178,0.00217646,68933.0,68922.0,0.38634482]
[1729457833784,0.072546,68932.0,68931.0,0.072546]
[1729457835796,0.15261448,68932.0,68931.0,0.072546]
[1729457836194,0.15261461,68932.0,68931.0,0.072546]
[1729457840998,0.15261461,68932.0,68931.0,0.09918758]
[1729457843190,0.08006861,68932.0,68931.0,0.09918758]
[1729457843696,0.072546,68932.0,68931.0,0.09918758]
[1729457858705,0.10807672,68932.0,68931.0,0.09918758]
[1729457860102,0.10807687,68932.0,68931.0,0.09918758]
[1729457865108,0.10807675,68932.0,68931.0,0.09918758]
[1729457865712,0.072546,68932.0,68931.0,0.15671969]
[1729457868520,0.433346,68932.0,68931.0,0.08417369]
[1729457868714,0.433346,68932.0,68928.0,0.04311312]
[1729457868920,0.072553,68925.0,68924.0,0.05747246]
[1729457869117,0.072554,68924.0,68923.0,0.13002646]
[1729457869625,0.072554,68924.0,68923.0,0.072554]
[1729457870017,0.072554,68924.0,68923.0,0.09811929]
[1729457880324,0.3608,68926.0,68925.0,0.072553]
[1729457881226,0.3608,68926.0,68922.0,0.13002646]
[1729457881227,0.072555,68923.0,68922.0,0.13002646]
[1729457881428,0.072555,68923.0,68922.0,0.072554]
[1729457890132,0.3608,68926.0,68910.0,0.3608]
[1729457890339,0.3608,68926.0,68914.0,0.072564]
[1729457890340,0.072565,68915.0,68914.0,0.072564]
[1729457892732,0.072568,68912.0,68911.0,0.072567]
[1729457894143,0.072572,68907.0,68906.0,0.00217663]
[1729457895841,0.072572,68907.0,68885.0,0.433395]
[1729457895842,1.03536,68907.0,68887.0,0.072592]
[1729457896047,0.072594,68886.0,68885.0,0.3608]
[1729457896237,0.072594,68886.0,68885.0,0.46009518]
[1729457897245,0.3608,68894.0,68887.0,0.072593]
[1729457897246,0.07259,68890.0,68887.0,0.072593]
[1729457897446,0.3608,68894.0,68887.0,0.072593]
[1729457897750,0.072592,68888.0,68887.0,0.072593]
[1729457897944,0.3608,68894.0,68885.0,0.40650018]
[1729457898147,0.072594,68886.0,68885.0,0.40650018]
[1729457898348,0.072594,68886.0,68885.0,0.019]
[1729457898349,0.433394,68886.0,68885.0,0.019]
[1729457898546,0.072603,68878.0,68877.0,0.3608]
[1729457900150,0.072603,68878.0,68877.0,0.38728842]
[1729457900350,0.072616,68865.0,68861.0,0.05747246]
[1729457900550,0.072616,68865.0,68858.0,0.37895708]
[1729457900551,0.072621,68861.0,68860.0,0.072621]
[1729457900938,0.3608,68866.0,68858.0,0.3608]
[1729457901147,0.072623,68859.0,68858.0,0.38756422]
[1729457902042,0.072623,68859.0,68858.0,0.02676422]
[1729457902244,0.072623,68859.0,68858.0,0.001]
[1729457904353,0.072623,68859.0,68858.0,0.002]
[1729457905653,0.433423,68859.0,68858.0,0.002]
[1729457905958,0.433423,68859.0,68843.0,0.00217901]
[1729457905959,0.072638,68844.0,68843.0,0.00217901]
[1729457907057,0.072638,68844.0,68843.0,0.02803258]
[1729457907251,0.073638,68844.0,68843.0,0.01617901]
[1729457907459,0.074638,68844.0,68843.0,0.03017901]
[1729457909052,0.074638,68844.0,68843.0,0.028]
[1729457909646,0.602838,68844.0,68843.0,0.028]
[1729457910249,0.072657,68827.0,68822.0,0.3923]
[1729457910555,0.3608,68834.0,68824.0,0.072659]
[1729457910859,0.072656,68827.0,68824.0,0.072659]
[1729457911261,0.072658,68825.0,68824.0,0.072659]
[1729457912148,0.072661,68823.0,68822.0,0.41460648]
[1729457912859,0.072661,68823.0,68822.0,0.3888]
[1729457913055,0.072661,68823.0,68822.0,0.3748]
[1729457913256,0.072661,68823.0,68822.0,0.3608]
[1729457913748,0.001,68823.0,68822.0,0.3608]
[1729457914059,0.001,68823.0,68822.0,0.433462]
[1729457914245,0.002,68823.0,68822.0,0.433462]
[1729457914960,0.072666,68818.0,68814.0,0.07267]
[1729457915460,0.072667,68817.0,68814.0,0.07267]
[1729457915667,0.002,68823.0,68814.0,0.07267]
[1729457915668,0.072669,68815.0,68814.0,0.07267]
[1729457916160,0.072671,68813.0,68812.0,0.38670722]
[1729457916948,0.072671,68813.0,68812.0,0.3608]
[1729457917358,0.077671,68813.0,68812.0,0.3608]
[1729457917559,0.072673,68811.0,68810.0,0.02578567]
[1729457917752,0.009,68813.0,68809.0,0.072675]
[1729457918255,0.008,68813.0,68809.0,0.072675]
[1729457918657,0.072674,68810.0,68809.0,0.072675]
[1729457919362,0.080672,68813.0,68811.0,0.072673]
[1729457919662,0.072674,68811.0,68809.0,0.072675]
[1729457920554,0.072674,68810.0,68809.0,0.072675]
[1729457920961,0.073674,68810.0,68809.0,0.072675]
[1729457921663,0.072671,68813.0,68805.0,0.072679]
[1729457921864,0.09404,68816.0,68809.0,0.072675]
[1729457922061,0.072674,68811.0,68809.0,0.072675]
[1729457922454,0.09404,68816.0,68805.0,0.072679]
[1729457922455,0.072669,68815.0,68805.0,0.072679]
[1729457922655,0.072677,68808.0,68807.0,0.072675]
[1729457923067,0.001,68810.0,68804.0,0.38730041]
[1729457923363,0.001,68810.0,68809.0,0.072675]
[1729457923659,0.072672,68812.0,68806.0,0.05691309]
[1729457923861,0.006,68815.0,68810.0,0.3608]
[1729457924057,0.006,68815.0,68814.0,0.07267]
[1729457924258,0.072666,68818.0,68816.0,0.072667]
[1729457924458,0.072666,68818.0,68817.0,0.072667]
[1729457925365,0.0321,68833.0,68816.0,0.41771309]
[1729457925366,0.00218034,68825.0,68816.0,0.41771309]
[1729457925667,0.00218034,68825.0,68820.0,0.05691309]
[1729457926062,0.00218034,68825.0,68818.0,0.05691309]
[1729457926565,0.072667,68817.0,68816.0,0.3618]
[1729457926866,0.072667,68817.0,68816.0,0.001]
[1729457927065,0.3608,68821.0,68820.0,0.001]
[1729457927066,0.433463,68821.0,68820.0,0.001]
[1729457927667,0.3608,68821.0,68814.0,0.072669]
[1729457927870,0.072669,68816.0,68814.0,0.072669]
[1729457928364,0.072669,68816.0,68811.0,0.05691309]
[1729457928570,0.072669,68816.0,68810.0,0.3608]
[1729457928571,0.072673,68811.0,68810.0,0.3608]
[1729457929354,0.072673,68811.0,68810.0,0.41798697]
[1729457930366,0.072673,68811.0,68810.0,0.3628]
[1729457930760,0.072673,68811.0,68810.0,0.3648]
[1729457931263,0.36192001,68821.0,68810.0,0.3648]
[1729457931264,0.3608,68821.0,68810.0,0.3648]
[1729457931569,0.3608,68821.0,68817.0,0.05726285]
[1729457931766,0.3608,68821.0,68818.0,0.05726285]
[1729457931965,0.072665,68819.0,68818.0,0.05726285]
[1729457932363,0.072667,68817.0,68816.0,0.05726285]
[1729457932565,0.0302,68818.0,68812.0,0.07114137]
[1729457932866,0.102866,68818.0,68817.0,0.05732224]
[1729457933461,0.072667,68817.0,68813.0,0.07114137]
[1729457933768,0.07267,68814.0,68813.0,0.07114137]
[1729457934365,0.07267,68814.0,68813.0,0.17884995]
[1729457934572,0.07267,68814.0,68813.0,0.10770858]
[1729457934975,0.07267,68814.0,68813.0,0.18037958]
[1729457935276,0.07267,68814.0,68813.0,0.30881539]
[1729457935469,0.07267,68814.0,68813.0,0.23614439]
[1729457935663,0.01,68818.0,68813.0,0.23653722]
[1729457935865,0.01,68818.0,68814.0,0.23653722]
[1729457936065,0.01,68818.0,68815.0,0.23653722]
[1729457936066,0.005,68818.0,68815.0,0.23653722]
[1729457936274,0.072667,68817.0,68816.0,0.1079112]
[1729457936469,0.433463,68821.0,68816.0,0.23664948]
[1729457936671,0.005,68818.0,68817.0,0.23664948]
[1729457937374,0.082666,68818.0,68817.0,0.23664948]
[1729457938576,0.082666,68818.0,68817.0,0.38625964]
[1729457938782,0.077666,68818.0,68817.0,0.38625964]
[1729457939277,0.077666,68818.0,68817.0,0.38725964]
[1729457939493,0.082666,68818.0,68817.0,0.38725964]
[1729457940676,0.082666,68818.0,68817.0,0.4882394]
[1729457941192,0.082666,68818.0,68817.0,0.38742463]
[1729457941588,0.082666,68818.0,68817.0,0.18119508]
[1729457943983,0.082666,68818.0,68817.0,0.10906405]
[1729457944493,0.082666,68818.0,68817.0,0.18119973]
[1729457945593,0.082666,68818.0,68817.0,0.001]
[1729457949492,0.082666,68818.0,68817.0,0.23709633]
[1729457950184,0.082666,68818.0,68817.0,0.23719531]
[1729457951498,0.03175627,68818.0,68817.0,0.23719531]
[1729457952295,0.39255627,68818.0,68817.0,0.23719531]
[1729457952496,0.3608,68818.0,68817.0,0.23719531]
[1729457953395,0.79672,68818.0,68817.0,0.10875522]
[1729457953594,0.79672,68818.0,68817.0,0.19533688]
[1729457953795,0.79672,68818.0,68817.0,0.10875522]
[1729457954586,0.43592,68817.0,68809.0,0.08658166]
[1729457954898,0.3608,68810.0,68809.0,0.08658166]
[1729457955100,0.3608,68810.0,68809.0,0.19441078]
[1729457955397,0.3608,68810.0,68809.0,0.10782912]
[1729457956101,0.3608,68810.0,68809.0,0.11138489]
[1729457956600,0.3608,68810.0,68809.0,0.004]
[1729457956797,0.7968,68810.0,68806.0,0.05771026]
[1729457956996,0.7968,68810.0,68795.0,0.08876193]
[1729457956997,0.3911,68809.0,68803.0,0.05771026]
[1729457957188,0.0938,68808.0,68802.0,0.05771026]
[1729457957394,0.3608,68803.0,68801.0,0.05771026]
[1729457957997,0.3608,68803.0,68802.0,0.05771026]
[1729457958201,0.0938,68808.0,68796.0,0.0627]
[1729457958400,0.0938,68808.0,68804.0,0.05767912]
[1729457958701,0.3608,68809.0,68805.0,0.05767912]
[1729457959704,0.3608,68809.0,68804.0,0.05767912]
[1729457959997,0.3608,68809.0,68806.0,0.05767912]
[1729457960212,0.3608,68809.0,68805.0,0.003]
[1729457960502,0.3608,68826.0,68807.0,0.3608]
[1729457960708,0.4546,68819.0,68807.0,0.3608]
[1729457960898,0.4546,68819.0,68805.0,0.003]
[1729457961100,0.4546,68819.0,68811.0,0.05764328]
[1729457962091,0.4596,68819.0,68811.0,0.05764328]
[1729457962297,0.4656,68819.0,68811.0,0.05764328]
[1729457962496,0.3718,68819.0,68811.0,0.05764328]
[1729457962698,0.3718,68819.0,68812.0,0.05764328]
[1729457964210,0.3718,68819.0,68817.0,0.05764328]
[1729457964507,0.3658,68819.0,68817.0,0.05764328]
[1729457964711,0.3668,68819.0,68817.0,0.05764328]
[1729457965003,0.3718,68819.0,68817.0,0.05764328]
[1729457965513,0.3668,68819.0,68818.0,0.05764328]
[1729457965807,0.3718,68819.0,68818.0,0.05764328]
[1729457966802,0.3718,68819.0,68817.0,0.05864328]
[1729457967200,0.3718,68819.0,68818.0,0.05864328]
[1729457967704,0.3718,68819.0,68818.0,0.001]
[1729457967904,0.3668,68819.0,68817.0,0.05764328]
[1729457968103,0.3718,68819.0,68817.0,0.05864328]
[1729457968704,0.3718,68819.0,68818.0,0.05764328]
[1729457968901,0.3718,68819.0,68818.0,0.05864328]
[1729457969612,0.3718,68819.0,68818.0,0.001]
[1729457970502,0.3718,68819.0,68817.0,0.05864328]
[1729457970703,0.3658,68819.0,68817.0,0.05864328]
[1729457971008,0.3718,68819.0,68817.0,0.05864328]
[1729457971911,0.3718,68819.0,68818.0,0.001]
[1729457973006,0.33543735,68819.0,68818.0,0.001]
[1729457973398,0.33543735,68819.0,68817.0,0.001]
[1729457974209,0.33543735,68819.0,68818.0,0.001]
[1729457975007,0.33543735,68819.0,68817.0,0.001]
[1729457976201,0.3608,68826.0,68818.0,0.1374213]
[1729457976413,0.3608,68826.0,68819.0,0.1062213]
[1729457976611,0.3608,68826.0,68820.0,0.10598224]
[1729457976912,0.3608,68826.0,68821.0,0.10598224]
[1729457977111,0.3608,68826.0,68822.0,0.10598224]
[1729457977312,0.3658,68826.0,68823.0,0.10598224]
[1729457977502,0.3658,68826.0,68824.0,0.10598224]
[1729457977703,0.3658,68826.0,68819.0,0.08646492]
[1729457977900,0.3658,68826.0,68820.0,0.10590751]
[1729457978101,0.3708,68826.0,68822.0,0.001]
[1729457978313,0.3708,68826.0,68823.0,0.10590751]
[1729457978520,0.3708,68826.0,68824.0,0.10590751]
[1729457978814,0.3708,68826.0,68821.0,0.001]
[1729457979006,0.3708,68826.0,68822.0,0.10589959]
[1729457979209,0.3708,68826.0,68821.0,0.001]
[1729457979607,0.3658,68826.0,68819.0,0.001]
[1729457979802,0.3698,68826.0,68819.0,0.001]
[1729457980616,0.3698,68826.0,68818.0,0.0312]
[1729457981218,0.3698,68826.0,68817.0,0.38639551]
[1729457981718,0.3648,68826.0,68817.0,0.38639551]
[1729457982020,0.3698,68826.0,68817.0,0.38639551]
[1729457982313,0.3648,68826.0,68817.0,0.38639551]
[1729457982513,0.3698,68826.0,68817.0,0.38639551]
[1729457982710,0.3658,68826.0,68817.0,0.38639551]
[1729457982903,0.3708,68826.0,68817.0,0.38639551]
[1729457988221,0.3708,68826.0,68818.0,0.05760745]
[1729457988818,0.3708,68826.0,68822.0,0.04321085]
[1729457989120,0.3658,68826.0,68822.0,0.04321085]
[1729457989321,0.3708,68826.0,68823.0,0.04321085]
[1729457989906,0.3658,68826.0,68823.0,0.04321085]
[1729457990122,0.3708,68826.0,68823.0,0.04321085]
[1729457990521,0.3708,68826.0,68822.0,0.04321085]
[1729457990723,0.3708,68826.0,68823.0,0.001]
[1729457990919,0.3708,68826.0,68823.0,0.04421085]
[1729457992011,0.3658,68826.0,68823.0,0.04421085]
[1729457992210,0.3708,68826.0,68823.0,0.04421085]
[1729457994316,0.3708,68826.0,68823.0,0.001]
[1729457998027,0.01,68826.0,68823.0,0.001]
[1729457999423,0.005,68826.0,68817.0,0.38639551]
[1729457999630,0.01,68826.0,68823.0,0.001]
[1729458001224,0.01,68826.0,68825.0,0.04321085]
[1729458002330,0.01,68826.0,68823.0,0.001]
[1729458002635,0.005,68826.0,68825.0,0.04324346]
[1729458002833,0.01,68826.0,68825.0,0.001]
[1729458004336,0.005,68826.0,68822.0,0.05760745]
[1729458004635,0.009,68826.0,68822.0,0.05760745]
[1729458005025,0.009,68826.0,68823.0,0.05760745]
[1729458005424,0.004,68826.0,68824.0,0.05760745]
[1729458005642,0.006,68826.0,68825.0,0.3608]
[1729458005834,0.002,68826.0,68825.0,0.3608]
[1729458006030,0.004,68826.0,68825.0,0.3608]
[1729458006438,0.002,68826.0,68825.0,0.3608]
[1729458006941,0.004,68826.0,68825.0,0.53822557]
[1729458007235,0.004,68826.0,68825.0,0.46625973]
[1729458007437,0.004,68826.0,68825.0,0.47080366]
[1729458007941,0.3608,68842.0,68825.0,0.47080366]
[1729458008240,0.3608,68842.0,68837.0,0.04323862]
[1729458008627,0.3608,68842.0,68836.0,0.04323862]
[1729458009437,0.3608,68842.0,68831.0,0.3608]
[1729458009438,0.3658,68842.0,68835.0,0.04323862]
[1729458009936,0.3658,68842.0,68836.0,0.04323862]
[1729458010241,0.3608,68842.0,68836.0,0.04323862]
[1729458010541,0.3658,68842.0,68836.0,0.04323862]
[1729458010945,0.3708,68842.0,68836.0,0.04323862]
[1729458011442,0.3708,68842.0,68835.0,0.04323862]
[1729458012744,0.3698,68842.0,68835.0,0.04323862]
[1729458014641,0.3698,68842.0,68834.0,0.04323862]
[1729458015235,0.3698,68842.0,68835.0,0.04323862]
[1729458015637,0.3698,68842.0,68834.0,0.04323862]
[1729458015843,0.3708,68842.0,68834.0,0.04323862]
[1729458016235,0.03558001,68841.0,68831.0,0.3863591]
[1729458016445,0.03558001,68840.0,68831.0,0.3863591]
[1729458016747,0.03558001,68839.0,68831.0,0.3863591]
[1729458016940,0.03558001,68838.0,68831.0,0.3863591]
[1729458017138,0.03558001,68837.0,68831.0,0.3863591]
[1729458017445,0.03558001,68836.0,68831.0,0.3863591]
[1729458017643,0.3658,68842.0,68831.0,0.3863591]
[1729458017942,0.005,68840.0,68831.0,0.3863591]
[1729458018144,0.03557915,68839.0,68831.0,0.3863591]
[1729458018341,0.005,68840.0,68838.0,0.3608]
[1729458019230,0.005,68839.0,68838.0,0.3608]
[1729458020149,0.0942,68858.0,68838.0,0.3608]
[1729458020346,0.03557355,68857.0,68844.0,0.3608]
[1729458020540,0.03557279,68856.0,68844.0,0.3608]
[1729458020735,0.03557279,68855.0,68844.0,0.3608]
[1729458020932,0.0942,68858.0,68844.0,0.3608]
[1729458021241,0.03557278,68857.0,68844.0,0.3608]
[1729458021440,0.03557278,68856.0,68844.0,0.3608]
[1729458021642,0.03557276,68855.0,68844.0,0.3608]
[1729458021943,0.03557276,68854.0,68844.0,0.3608]
[1729458022141,0.03557276,68853.0,68844.0,0.3608]
[1729458022338,0.03557276,68852.0,68844.0,0.3608]
[1729458022539,0.005,68856.0,68844.0,0.3608]
[1729458022848,0.03557377,68855.0,68844.0,0.3608]
[1729458023047,0.04057377,68854.0,68844.0,0.3608]
[1729458023242,0.03557377,68853.0,68844.0,0.3608]
[1729458023444,0.005,68854.0,68844.0,0.3608]
[1729458023648,0.03557316,68853.0,68844.0,0.3608]
[1729458023846,0.004,68856.0,68844.0,0.3608]
[1729458024052,0.002,68854.0,68844.0,0.3608]
[1729458025141,0.002,68853.0,68844.0,0.3608]
[1729458025941,0.002,68853.0,68844.0,0.38632558]
[1729458026248,0.007,68853.0,68844.0,0.38632558]
[1729458027245,0.005,68853.0,68844.0,0.38632558]
[1729458027947,0.009,68853.0,68844.0,0.38632558]
[1729458028742,0.004,68853.0,68844.0,0.38632558]
[1729458028941,0.009,68853.0,68844.0,0.38632558]
[1729458030247,0.005,68853.0,68844.0,0.38632558]
[1729458030547,0.009,68853.0,68844.0,0.38632558]
[1729458031745,0.004,68853.0,68844.0,0.38632558]
[1729458031945,0.009,68853.0,68844.0,0.38632558]
[1729458033948,0.009,68853.0,68852.0,0.3608]
[1729458033949,0.005,68853.0,68852.0,0.3608]
[1729458034155,0.009,68853.0,68844.0,0.38632558]
[1729458034356,0.009,68853.0,68845.0,0.0316]
[1729458034550,0.009,68853.0,68845.0,0.0638]
[1729458034746,0.0942,68858.0,68845.0,0.0638]
[1729458034965,0.009,68853.0,68845.0,0.0638]
[1729458035452,0.004,68853.0,68845.0,0.0638]
[1729458035655,0.009,68853.0,68845.0,0.0638]
[1729458036048,0.004,68853.0,68845.0,0.0638]
[1729458036355,0.009,68853.0,68845.0,0.0638]
[1729458036546,0.005,68853.0,68845.0,0.0638]
[1729458036749,0.009,68853.0,68845.0,0.0638]
[1729458037950,0.009,68853.0,68850.0,0.3608]
[1729458038853,0.008,68853.0,68850.0,0.3608]
[1729458039457,0.008,68853.0,68852.0,0.04323862]
[1729458039759,0.008,68853.0,68851.0,0.04323862]
[1729458039957,0.008,68853.0,68852.0,0.04323862]
[1729458040852,0.004,68853.0,68852.0,0.04323862]
[1729458041055,0.003,68853.0,68852.0,0.04323862]
[1729458041253,0.007,68853.0,68852.0,0.04323862]
[1729458041443,0.007,68853.0,68850.0,0.41845149]
[1729458042447,0.007,68853.0,68852.0,0.05765149]
[1729458042758,0.003,68853.0,68852.0,0.05765149]
[1729458043151,0.004,68853.0,68852.0,0.05765149]
[1729458043353,0.007,68853.0,68852.0,0.05765149]
[1729458043553,0.007,68853.0,68850.0,0.3608]
[1729458044156,0.0942,68858.0,68850.0,0.3608]
[1729458044357,0.003,68853.0,68850.0,0.3608]
[1729458045056,0.002,68853.0,68850.0,0.3608]
[1729458054563,0.002,68853.0,68851.0,0.05755897]
[1729458056063,0.002,68853.0,68852.0,0.3608]
[1729458056961,0.001,68853.0,68852.0,0.41835897]
[1729458057164,0.002,68853.0,68852.0,0.41840934]
[1729458057474,0.002,68853.0,68852.0,0.41840891]
[1729458057658,0.001,68853.0,68852.0,0.3608]
[1729458057962,0.002,68853.0,68852.0,0.41840874]
[1729458058162,0.002,68853.0,68852.0,0.3608]
[1729458058467,0.001,68853.0,68852.0,0.3608]
[1729458058669,0.0971,68871.0,68852.0,0.3871356]
[1729458058970,0.0971,68871.0,68865.0,0.0431944]
[1729458059356,0.0971,68871.0,68866.0,0.0431944]
[1729458059659,0.0971,68871.0,68865.0,0.0431944]
[1729458060249,0.0971,68871.0,68864.0,0.0431944]
[1729458060450,0.1011,68871.0,68864.0,0.0431944]
[1729458060665,0.1011,68871.0,68863.0,0.0431944]
[1729458061154,0.1011,68871.0,68864.0,0.0431944]
[1729458061355,0.1061,68871.0,68864.0,0.0431944]
[1729458061561,0.1061,68871.0,68867.0,0.0431944]
[1729458062557,0.1061,68871.0,68858.0,0.3608]
[1729458062558,0.1061,68871.0,68868.0,0.0431944]
[1729458062763,0.1061,68871.0,68867.0,0.0431944]
[1729458063073,0.1061,68871.0,68866.0,0.0431944]
[1729458063263,0.1061,68871.0,68865.0,0.0431944]
[1729458063571,0.1011,68871.0,68865.0,0.0431944]
[1729458063754,0.1021,68871.0,68865.0,0.0431944]
[1729458063955,0.1061,68871.0,68865.0,0.0431944]
[1729458064157,0.1011,68871.0,68865.0,0.0431944]
[1729458064362,0.1051,68871.0,68865.0,0.0431944]
[1729458064560,0.1051,68871.0,68866.0,0.0431944]
[1729458064752,0.1011,68871.0,68866.0,0.0431944]
[1729458064958,0.1051,68871.0,68866.0,0.0431944]
[1729458065260,0.1011,68871.0,68865.0,0.0431944]
[1729458065455,0.1041,68871.0,68865.0,0.0431944]
[1729458066460,0.1041,68871.0,68864.0,0.0431944]
[1729458068357,0.1011,68871.0,68864.0,0.0431944]
[1729458068553,0.1041,68871.0,68864.0,0.0431944]
[1729458069572,0.1041,68871.0,68858.0,0.38728302]
[1729458070662,0.1001,68871.0,68858.0,0.38728302]
[1729458070970,0.1041,68871.0,68858.0,0.38728302]
[1729458071168,0.1041,68871.0,68859.0,0.0333]
[1729458072365,0.1041,68871.0,68870.0,0.3608]
[1729458072568,0.007,68871.0,68870.0,0.3608]
[1729458072768,0.004,68871.0,68870.0,0.7216]
[1729458072962,0.007,68871.0,68870.0,0.7216]
[1729458073363,0.003,68871.0,68870.0,0.7216]
[1729458073676,0.007,68871.0,68870.0,0.7216]
[1729458074570,0.004,68871.0,68870.0,0.7216]
[1729458074775,0.007,68871.0,68870.0,0.7216]
[1729458075975,0.007,68871.0,68870.0,0.7482386]
[1729458086277,0.007,68871.0,68870.0,0.791433]
[1729458087084,0.007,68871.0,68870.0,0.7482386]
[1729458087583,0.007,68871.0,68870.0,0.791433]
[1729458088084,0.0306,68883.0,68870.0,0.791433]
[1729458088085,0.3608,68906.0,68870.0,1.90935041]
[1729458088276,0.0645,68903.0,68894.0,0.3608]
[1729458089378,0.0645,68903.0,68900.0,0.3608]
[1729458089585,0.0695,68903.0,68900.0,0.3608]
[1729458090198,0.005,68903.0,68900.0,0.3608]
[1729458091388,0.008,68903.0,68900.0,0.3608]
[1729458091885,0.005,68903.0,68900.0,0.3608]
[1729458092081,0.03387717,68917.0,68900.0,0.38754376]
[1729458092384,0.03554291,68916.0,68907.0,0.3608]
[1729458092587,0.03554291,68915.0,68913.0,0.3608]
[1729458092886,0.03554291,68914.0,68913.0,0.3608]
[1729458093185,0.0355411,68914.0,68913.0,0.3608]
[1729458093383,0.004,68917.0,68913.0,0.3608]
[1729458093682,0.007,68917.0,68913.0,0.3608]
[1729458094283,0.004,68917.0,68913.0,0.3608]
[1729458094591,0.003,68914.0,68913.0,0.3608]
[1729458094889,0.007,68914.0,68913.0,0.3608]
[1729458095100,0.004,68914.0,68913.0,0.3608]
[1729458095408,0.003,68917.0,68913.0,0.3608]
[1729458095698,0.007,68917.0,68913.0,0.3608]
[1729458095897,0.0318,68916.0,68913.0,0.3608]
[1729458096199,0.004,68914.0,68913.0,0.3608]
[1729458096805,0.007,68914.0,68913.0,0.3608]
[1729458097601,0.003,68914.0,68913.0,0.3608]
[1729458098292,0.007,68914.0,68913.0,0.3608]
[1729458104005,0.007,68914.0,68907.0,0.02623023]
[1729458104307,0.007,68914.0,68910.0,0.3608]
[1729458110602,0.007,68914.0,68901.0,0.3608]
[1729458110805,0.3608,68906.0,68892.0,0.3608]
[1729458111110,0.3608,68900.0,68894.0,0.02605737]
[1729458111302,0.3608,68900.0,68887.0,0.3608]
[1729458112013,0.03555108,68899.0,68887.0,0.3608]
[1729458112199,0.3608,68900.0,68887.0,0.3608]
[1729458112200,0.03555169,68898.0,68887.0,0.3608]
[1729458112405,0.03555169,68897.0,68887.0,0.3868626]
[1729458112607,0.03555169,68896.0,68887.0,0.3868626]
[1729458112806,0.3608,68900.0,68887.0,0.3868626]
[1729458113007,0.03555155,68899.0,68887.0,0.3868626]
[1729458113308,0.03555155,68898.0,68887.0,0.3868626]
[1729458113511,0.03555155,68897.0,68887.0,0.3868626]
[1729458113708,0.3648,68900.0,68887.0,0.3868626]
[1729458113912,0.03555185,68899.0,68887.0,0.3868626]
[1729458114109,0.03555185,68898.0,68887.0,0.3868626]
[1729458114413,0.3648,68900.0,68887.0,0.3868626]
[1729458114414,0.002,68899.0,68887.0,0.3868626]
[1729458115104,0.3608,68894.0,68880.0,0.00217761]
[1729458115704,0.3608,68894.0,68880.0,0.02774684]
[1729458116810,0.3608,68894.0,68880.0,0.02974684]
[1729458117610,0.3608,68894.0,68880.0,0.03274684]
[1729458125411,0.3608,68894.0,68884.0,0.3608]
[1729458126222,0.36297763,68908.0,68893.0,0.3608]
[1729458126422,0.03555065,68904.0,68893.0,0.3608]
[1729458126718,0.03555065,68903.0,68894.0,0.03]
[1729458126919,0.36297763,68908.0,68894.0,0.03]
[1729458127117,0.36297763,68908.0,68895.0,0.0637]
[1729458127417,0.36297763,68908.0,68899.0,0.3608]
[1729458127418,0.00217763,68908.0,68899.0,0.3608]
[1729458127914,0.004,68904.0,68899.0,0.3608]
[1729458128127,0.007,68904.0,68899.0,0.3608]
[1729458129122,0.003,68904.0,68899.0,0.3608]
[1729458129918,0.007,68904.0,68899.0,0.3608]
[1729458132609,0.072579,68900.0,68899.0,0.3608]
[1729458133618,0.072579,68900.0,68886.0,0.3608]
[1729458133619,0.072593,68887.0,68886.0,0.3608]
[1729458133820,0.3608,68891.0,68880.0,0.36297761]
[1729458134120,0.072599,68881.0,68880.0,0.36297761]
[1729458134513,0.072599,68881.0,68880.0,0.00217761]
[1729458134910,0.072599,68881.0,68880.0,0.02897508]
[1729458135116,0.072599,68881.0,68880.0,0.00717761]
[1729458135419,0.072599,68881.0,68880.0,0.01317761]
[1729458135913,0.072599,68881.0,68880.0,0.00717761]
[1729458136116,0.073599,68881.0,68880.0,0.02117761]
[1729458137512,0.073599,68881.0,68880.0,0.03017761]
[1729458138117,0.3608,68907.0,68902.0,0.072575]
[1729458138321,0.3608,68907.0,68896.0,0.3608]
[1729458138523,0.072575,68904.0,68902.0,0.072577]
[1729458139025,0.3608,68907.0,68897.0,0.0317]
[1729458139535,0.3608,68907.0,68903.0,0.072576]
[1729458139715,0.004,68904.0,68903.0,0.072576]
[1729458140529,0.3648,68907.0,68905.0,0.072574]
[1729458141025,0.3678,68907.0,68905.0,0.072574]
[1729458141726,0.007,68907.0,68906.0,0.3608]
[1729458142030,0.003,68907.0,68906.0,0.3608]
[1729458142417,0.075572,68907.0,68906.0,0.3608]
[1729458142723,0.079572,68907.0,68906.0,0.3608]
[1729458143224,0.075572,68907.0,68906.0,0.3608]
[1729458143425,0.079572,68907.0,68906.0,0.3608]
[1729458149222,0.079572,68907.0,68897.0,0.0317]
[1729458149420,0.072582,68897.0,68896.0,0.00076]
[1729458149629,0.0625,68906.0,68891.0,0.3608]
[1729458149630,0.072587,68893.0,68891.0,0.3608]
[1729458149824,0.072587,68893.0,68891.0,0.38674105]
[1729458151020,0.072582,68898.0,68893.0,0.072586]
[1729458151325,0.072582,68898.0,68891.0,0.38674105]
[1729458151635,0.072582,68898.0,68894.0,0.072585]
[1729458152636,0.073582,68898.0,68894.0,0.072585]
[1729458153030,0.073582,68898.0,68895.0,0.072584]
[1729458153236,0.073582,68898.0,68896.0,0.072583]
[1729458153926,0.074582,68898.0,68896.0,0.072583]
[1729458154128,0.074582,68898.0,68897.0,0.072582]
[1729458155435,0.073582,68898.0,68897.0,0.072582]
[1729458155631,0.074582,68898.0,68897.0,0.072582]
[1729458155823,0.074582,68898.0,68897.0,0.433382]
[1729458156331,0.002,68898.0,68897.0,0.433382]
[1729458163643,0.002,68898.0,68897.0,0.868822]